bitfinex-derivatives/quotes_BTCF0:USTF0_20210105
["timestamp","ask_amount","ask_price","bid_price","bid_amount"]
[1609882654763,0.56163608,33869.0,33868.0,0.68082608]
[1609882654963,0.56163608,33869.0,33868.0,0.13632608]
[1609882655165,0.56163608,33869.0,33867.0,1.0]
[1609882656166,1.0,33868.0,33851.0,1.0]
[1609882656766,0.13632608,33852.0,33851.0,1.0]
[1609882658167,0.13632608,33852.0,33848.0,2.11665208]
[1609882659069,0.13632608,33852.0,33848.0,6.36955208]
[1609882661478,0.13632608,33852.0,33849.0,2.11712602]
[1609882663077,0.13632608,33852.0,33848.0,4.2529]
[1609882664179,0.13632608,33852.0,33848.0,5.2529]
[1609882664681,0.13632608,33852.0,33851.0,0.13632608]
[1609882666984,0.13632608,33852.0,33848.0,1.0]
[1609882668283,0.13632608,33852.0,33839.0,0.1771]
[1609882668683,0.12555,33855.0,33848.0,0.13632608]
[1609882669083,0.2808,33868.0,33851.0,4.4371]
[1609882670285,1.0,33861.0,33851.0,4.4371]
[1609882670487,1.14325,33861.0,33851.0,4.4371]
[1609882670687,0.13632608,33852.0,33851.0,4.4371]
[1609882670986,0.13632608,33852.0,33848.0,0.13632608]
[1609882671186,0.26991608,33852.0,33848.0,0.13632608]
[1609882672188,0.26991608,33852.0,33848.0,1.13632608]
[1609882676194,0.26991608,33852.0,33848.0,0.13632608]
[1609882680500,0.26991608,33852.0,33848.0,0.73442608]
[1609882683601,0.26991608,33852.0,33848.0,0.13632608]
[1609882683900,0.26991608,33852.0,33851.0,4.3871]
[1609882686404,0.7274141,33852.0,33851.0,4.3871]
[1609882690307,0.59108802,33852.0,33851.0,4.3871]
[1609882690512,0.14325,33861.0,33851.0,4.3871]
[1609882690709,0.00377813,33875.0,33841.0,2.27177235]
[1609882690909,0.13632608,33870.0,33868.0,0.13632608]
[1609882691311,0.13632608,33870.0,33869.0,4.8685]
[1609882691510,0.00377813,33875.0,33869.0,4.8685]
[1609882692311,0.00377813,33875.0,33874.0,1.0]
[1609882692511,0.00377724,33876.0,33874.0,1.6751]
[1609882692912,0.00377724,33876.0,33875.0,0.13632608]
[1609882693114,0.13632608,33880.0,33875.0,0.13632608]
[1609882694212,0.13632608,33880.0,33876.0,1.0]
[1609882696312,0.13632608,33880.0,33875.0,0.13632608]
[1609882696812,0.13632608,33876.0,33874.0,0.3338173]
[1609882698516,0.13632608,33876.0,33873.0,0.13632608]
[1609882698717,0.13632608,33876.0,33864.0,4.1693]
[1609882698916,0.13632608,33865.0,33864.0,4.30562608]
[1609882700919,0.13632608,33865.0,33864.0,4.32520439]
[1609882701118,0.13632608,33865.0,33864.0,0.15590439]
[1609882704421,0.13632608,33865.0,33864.0,4.26890439]
[1609882705923,0.13632608,33865.0,33864.0,0.15590439]
[1609882706924,0.13632608,33865.0,33864.0,0.01957831]
[1609882709432,0.13632608,33865.0,33864.0,4.43447831]
[1609882710833,0.13545,33882.0,33864.0,4.43447831]
[1609882711034,0.13632608,33877.0,33869.0,0.13632608]
[1609882711234,0.13632608,33877.0,33872.0,0.694]
[1609882712235,0.13632608,33877.0,33872.0,1.694]
[1609882713036,0.13632608,33873.0,33872.0,1.694]
[1609882714239,0.13632608,33873.0,33872.0,0.694]
[1609882716040,3.4833,33870.0,33869.0,1.0]
[1609882716238,3.4833,33870.0,33864.0,0.01957831]
[1609882716939,0.13632608,33865.0,33864.0,0.01957831]
[1609882717138,0.66642608,33865.0,33864.0,0.01957831]
[1609882719545,0.13632608,33865.0,33864.0,0.01957831]
[1609882721744,0.81002608,33865.0,33864.0,0.01957831]
[1609882722144,1.81002608,33865.0,33864.0,0.01957831]
[1609882723847,1.13632608,33865.0,33864.0,0.01957831]
[1609882726951,1.13632608,33865.0,33853.0,0.1771]
[1609882728150,0.13632608,33865.0,33853.0,0.1771]
[1609882728352,1.0,33856.0,33853.0,0.1771]
[1609882728752,1.14768,33856.0,33853.0,0.1771]
[1609882728951,0.13632608,33854.0,33853.0,0.1771]
[1609882732954,0.13632608,33854.0,33846.0,2.15823069]
[1609882733655,0.6481,33852.0,33846.0,2.15823069]
[1609882733855,0.13632608,33854.0,33846.0,2.15823069]
[1609882734056,0.13632608,33854.0,33847.0,3.5607]
[1609882735055,0.13632608,33848.0,33847.0,3.5607]
[1609882736056,0.13632608,33848.0,33846.0,2.15823069]
[1609882736258,1.14768,33856.0,33847.0,2.15870254]
[1609882736957,1.14768,33856.0,33848.0,0.13632608]
[1609882739061,0.13632608,33849.0,33848.0,0.13632608]
[1609882739461,0.13632608,33849.0,33848.0,4.77612608]
[1609882741267,0.13632608,33849.0,33848.0,0.13632608]
[1609882742073,1.14768,33856.0,33848.0,0.13632608]
[1609882742266,0.14768,33856.0,33855.0,4.8323]
[1609882742968,0.40792667,33865.0,33855.0,4.8323]
[1609882743168,0.40792667,33865.0,33864.0,0.13632608]
[1609882743369,0.40792667,33865.0,33864.0,0.72902608]
[1609882743669,0.40792667,33865.0,33864.0,0.13632608]
[1609882743870,0.40792667,33865.0,33864.0,3.50972608]
[1609882746173,0.40792667,33865.0,33864.0,9.50972608]
[1609882748176,0.40792667,33865.0,33864.0,3.50972608]
[1609882750179,0.40792667,33865.0,33864.0,1.13632608]
[1609882750379,4.47142667,33865.0,33864.0,1.13632608]
[1609882750579,4.47142667,33865.0,33864.0,1.0]
[1609882751382,4.47142667,33865.0,33864.0,1.13632608]
[1609882751781,0.40792667,33865.0,33864.0,1.13632608]
[1609882751982,0.40792667,33865.0,33864.0,5.50572608]
[1609882752383,0.40792667,33865.0,33864.0,4.50572608]
[1609882756187,0.40792667,33865.0,33864.0,5.50572608]
[1609882757895,0.04573399,33865.0,33864.0,9.97508496]
[1609882759194,0.11688,33875.0,33864.0,7.65101834]
[1609882759392,0.13632608,33877.0,33874.0,0.13632608]
[1609882759992,0.13632608,33877.0,33875.0,3.7521]
[1609882761991,0.13632608,33877.0,33874.0,0.13632608]
[1609882764395,0.13632608,33877.0,33876.0,4.7432]
[1609882766898,0.13632608,33877.0,33874.0,0.13632608]
[1609882769102,0.13632608,33877.0,33876.0,0.6612]
[1609882781919,0.13632608,33877.0,33873.0,0.13632608]
[1609882784421,0.13632608,33877.0,33875.0,4.5638]
[1609882787626,0.13632608,33877.0,33873.0,0.13632608]
[1609882789428,0.13632608,33877.0,33876.0,3.3824]
[1609882792232,1.0,33876.0,33873.0,0.13632608]
[1609882797640,1.0,33876.0,33875.0,4.4523]
[1609882798241,0.13545,33882.0,33875.0,5.4523]
[1609882798541,0.00377922,33901.0,33875.0,5.4523]
[1609882798941,0.11113922,33901.0,33875.0,5.4523]
[1609882799342,0.10736,33901.0,33882.0,2.14942246]
[1609882799542,0.10736,33901.0,33900.0,0.13632608]
[1609882801743,0.24368608,33901.0,33900.0,0.13632608]
[1609882802546,4.73008608,33901.0,33900.0,0.13632608]
[1609882803245,4.73008608,33901.0,33888.0,2.15712738]
[1609882803648,4.59376,33901.0,33893.0,0.13632608]
[1609882803848,0.10736,33901.0,33893.0,0.13632608]
[1609882804048,3.6426,33900.0,33893.0,0.13632608]
[1609882804247,1.0,33896.0,33893.0,0.13632608]
[1609882804647,1.12412,33896.0,33893.0,0.13632608]
[1609882805150,1.12412,33896.0,33888.0,2.15712738]
[1609882805649,0.13632608,33889.0,33888.0,2.15712738]
[1609882806150,0.26037608,33889.0,33888.0,7.03572738]
[1609882806351,0.26037608,33889.0,33888.0,4.8786]
[1609882807152,0.26037608,33889.0,33887.0,0.13632608]
[1609882809455,0.26037608,33889.0,33888.0,3.8361]
[1609882813463,0.26037608,33889.0,33887.0,0.13632608]
[1609882814966,0.26037608,33889.0,33888.0,3.9196]
[1609882815166,0.12405,33889.0,33888.0,3.9196]
[1609882815367,0.12412,33896.0,33888.0,3.9196]
[1609882815766,0.12412,33896.0,33894.0,0.13632608]
[1609882815967,1.0,33899.0,33895.0,0.5604]
[1609882817669,0.13632608,33896.0,33895.0,0.5604]
[1609882817871,0.28602608,33896.0,33895.0,0.5604]
[1609882822476,0.1497,33896.0,33895.0,0.5604]
[1609882822874,1.16763101,33899.0,33895.0,0.5604]
[1609882823875,1.16763101,33899.0,33898.0,0.13632608]
[1609882824275,0.16763101,33899.0,33898.0,0.13632608]
[1609882824875,0.16763101,33899.0,33898.0,4.06052608]
[1609882827183,4.6165,33927.0,33898.0,6.20983773]
[1609882827784,4.6165,33927.0,33926.0,0.13632608]
[1609882827984,0.287,33933.0,33926.0,0.13632608]
[1609882828384,1.0,33932.0,33926.0,0.13632608]
[1609882828585,1.09091,33932.0,33926.0,0.13632608]
[1609882829186,1.09091,33932.0,33930.0,3.8746]
[1609882829792,0.13632608,33931.0,33930.0,3.8746]
[1609882829991,0.13632608,33931.0,33926.0,0.13632608]
[1609882830392,1.0,33930.0,33926.0,0.13632608]
[1609882831891,0.13632608,33927.0,33926.0,0.13632608]
[1609882832491,0.43230879,33927.0,33926.0,0.13632608]
[1609882835693,0.29598271,33927.0,33926.0,0.13632608]
[1609882844705,0.29598271,33927.0,33926.0,4.42522608]
[1609882846304,0.29598271,33927.0,33926.0,5.42522608]
[1609882847505,0.29598271,33927.0,33926.0,1.13632608]
[1609882848206,0.29598271,33927.0,33926.0,0.13632608]
[1609882849810,0.29598271,33927.0,33926.0,4.63552608]
[1609882852316,0.29598271,33927.0,33926.0,5.63552608]
[1609882852515,0.29598271,33927.0,33926.0,1.13632608]
[1609882854217,0.29598271,33927.0,33926.0,0.13632608]
[1609882854418,0.29598271,33927.0,33926.0,1.13632608]
[1609882858624,0.11976,33939.0,33926.0,1.13632608]
[1609882859026,1.0,33958.0,33926.0,1.13632608]
[1609882859226,1.0,33958.0,33935.0,3.4624]
[1609882859929,1.0,33958.0,33956.0,0.13632608]
[1609882860328,0.00373987,33962.0,33956.0,0.13632608]
[1609882862030,1.00909318,33963.0,33956.0,0.13632608]
[1609882862031,0.41402608,33957.0,33956.0,0.13632608]
[1609882862230,0.13632608,33957.0,33956.0,0.13632608]
[1609882864832,1.0,33969.0,33956.0,0.13632608]
[1609882865233,1.0,33969.0,33963.0,3.5386]
[1609882866033,0.13632608,33964.0,33963.0,3.5386]
[1609882866234,0.25868608,33964.0,33963.0,3.5386]
[1609882866533,0.25868608,33964.0,33961.0,0.13632608]
[1609882867636,0.25868608,33964.0,33963.0,3.5205]
[1609882868835,0.12236,33964.0,33963.0,3.5205]
[1609882871238,0.14006549,33977.0,33963.0,3.5205]
[1609882871638,0.13632608,33977.0,33963.0,3.5205]
[1609882872040,0.13632608,33977.0,33976.0,0.13632608]
[1609882873141,0.13632608,33977.0,33976.0,0.83872608]
[1609882874443,0.5807,33996.0,33976.0,0.83872608]
[1609882876044,0.5807,33996.0,33988.0,0.13632608]
[1609882876645,0.5807,33996.0,33991.0,3.6943]
[1609882877044,0.2905,33996.0,33991.0,3.6943]
[1609882878049,0.2905,33996.0,33994.0,0.13632608]
[1609882878248,0.00373168,34001.0,33994.0,0.13632608]
[1609882878451,1.0,34004.0,33994.0,0.13632608]
[1609882879449,1.0,34004.0,33987.0,1.0]
[1609882879650,1.13142,34004.0,33987.0,1.0]
[1609882879851,1.13142,34004.0,33993.0,3.8617]
[1609882880051,0.13632608,33994.0,33993.0,3.8617]
[1609882881352,0.13918,33996.0,33993.0,3.8617]
[1609882881953,0.13918,33996.0,33995.0,0.13632608]
[1609882882553,0.13918,33996.0,33980.0,0.01957831]
[1609882882954,3.3058,33991.0,33980.0,0.01957831]
[1609882883957,0.13632608,33982.0,33981.0,0.13632608]
[1609882884558,1.0,33992.0,33981.0,0.13632608]
[1609882886062,0.13632608,33987.0,33981.0,0.13632608]
[1609882886461,0.13918,33996.0,33981.0,0.13632608]
[1609882886861,0.2938,34003.0,33981.0,0.13632608]
[1609882887961,0.13632608,33992.0,33988.0,0.13632608]
[1609882893273,0.13632608,33992.0,33989.0,3.9483]
[1609882894275,0.13632608,33992.0,33991.0,1.0]
[1609882897480,0.12587,33997.0,33991.0,1.0]
[1609882897881,4.19302,34004.0,33991.0,1.0]
[1609882898081,0.13142,34004.0,33997.0,0.13632608]
[1609882898280,4.1516,34002.0,33997.0,0.13632608]
[1609882898680,0.13142,34004.0,33997.0,0.13632608]
[1609882898880,0.32369768,33992.0,33987.0,5.0]
[1609882900085,0.32369768,33992.0,33991.0,0.13632608]
[1609882900283,0.32369768,33992.0,33991.0,1.13632608]
[1609882901685,0.32369768,33992.0,33991.0,1.0]
[1609882902286,0.32369768,33992.0,33980.0,0.01957831]
[1609882904090,0.13632608,33981.0,33980.0,0.01957831]
[1609882916009,0.13632608,33981.0,33980.0,4.46047831]
[1609882918712,0.13632608,33981.0,33980.0,0.01957831]
[1609882920912,0.13632608,33981.0,33980.0,4.45487831]
[1609882923120,0.13632608,33981.0,33980.0,0.01957831]
[1609882936039,0.13632608,33981.0,33980.0,3.64787831]
[1609882936840,0.13167,33987.0,33980.0,3.64787831]
[1609882937242,0.32369768,33992.0,33980.0,3.64787831]
[1609882937844,0.32369768,33992.0,33980.0,0.01957831]
[1609882938043,3.465,33981.0,33980.0,0.01957831]
[1609882938642,3.60132608,33981.0,33980.0,0.01957831]
[1609882940344,4.60132608,33981.0,33980.0,0.01957831]
[1609882941747,4.60132608,33981.0,33970.0,2.1100095]
[1609882941946,1.13632608,33981.0,33970.0,2.1100095]
[1609882942346,0.13632608,33981.0,33970.0,2.1100095]
[1609882942747,0.13632608,33971.0,33970.0,2.1100095]
[1609882942948,0.24160608,33971.0,33970.0,2.1100095]
[1609882943349,0.24160608,33971.0,33963.0,2.11305754]
[1609882944147,0.24160608,33971.0,33953.0,2.12709891]
[1609882944748,0.13632608,33954.0,33953.0,2.12709891]
[1609882945149,3.61058608,33954.0,33953.0,2.12709891]
[1609882945951,0.24428608,33954.0,33953.0,1.80879891]
[1609882947653,0.24428608,33954.0,33943.0,2.65887364]
[1609882947654,0.24428608,33954.0,33946.0,2.30631871]
[1609882948454,1.0,33947.0,33946.0,2.30631871]
[1609882948653,1.13632608,33947.0,33946.0,2.30631871]
[1609882948853,1.13632608,33947.0,33936.0,2.83854611]
[1609882948854,1.13632608,33947.0,33936.0,2.30641842]
[1609882949454,1.13632608,33947.0,33932.0,3.72222608]
[1609882949455,1.13632608,33947.0,33935.0,2.30692238]
[1609882950255,0.13632608,33947.0,33935.0,2.30692238]
[1609882950454,1.0,33938.0,33935.0,2.30692238]
[1609882950655,4.24682608,33936.0,33933.0,2.30268424]
[1609882951056,0.13632608,33936.0,33933.0,2.30268424]
[1609882951855,0.86523342,33938.0,33931.0,2.3030212]
[1609882952055,0.10796,33954.0,33931.0,2.4031612]
[1609882952255,3.4159,33956.0,33931.0,2.4031612]
[1609882952455,0.00375046,33981.0,33937.0,0.13632608]
[1609882952655,0.13632608,33950.0,33943.0,0.13632608]
[1609882954457,0.6587,33949.0,33943.0,0.13632608]
[1609882954659,0.6587,33949.0,33940.0,1.0]
[1609882954858,0.13632608,33944.0,33940.0,1.0]
[1609882956059,0.13632608,33944.0,33939.0,0.13632608]
[1609882956861,0.13632608,33940.0,33939.0,0.13632608]
[1609882957262,0.78172608,33940.0,33937.0,0.13632608]
[1609882957662,0.13632608,33940.0,33933.0,2.29913013]
[1609882957865,3.9769,33938.0,33933.0,2.29913013]
[1609882958063,1.0,33934.0,33933.0,2.29913013]
[1609882958466,1.12625,33934.0,33933.0,2.29913013]
[1609882958866,1.26257608,33934.0,33933.0,2.29913013]
[1609882960064,0.26257608,33934.0,33933.0,2.29913013]
[1609882961668,4.6493,33930.0,33922.0,0.01957831]
[1609882962068,1.0,33923.0,33922.0,0.01957831]
[1609882962467,1.10715,33923.0,33922.0,0.01957831]
[1609882962667,9.10905,33923.0,33922.0,0.01957831]
[1609882962868,1.24347608,33923.0,33922.0,0.01957831]
[1609882963269,1.24347608,33923.0,33913.0,2.12688123]
[1609882963673,3.4789,33907.0,33906.0,1.0]
[1609882964073,0.09992,33909.0,33905.0,2.12722185]
[1609882964471,0.09992,33909.0,33895.0,2.65902731]
[1609882964472,0.65282,33909.0,33898.0,2.13180524]
[1609882964871,0.13632608,33899.0,33898.0,2.13180524]
[1609882965071,0.5529,33909.0,33898.0,2.13180524]
[1609882965270,0.5529,33909.0,33897.0,0.13632608]
[1609882965470,0.5529,33909.0,33897.0,0.28593608]
[1609882965670,0.5529,33909.0,33899.0,2.13406648]
[1609882965671,0.28162009,33909.0,33899.0,2.13406648]
[1609882965871,4.7359,33910.0,33899.0,2.13406648]
[1609882966072,1.0,33913.0,33899.0,2.13406648]
[1609882966273,3.8784,33904.0,33901.0,2.12599313]
[1609882966676,1.0,33913.0,33901.0,2.12599313]
[1609882966874,0.13632608,33902.0,33901.0,2.12599313]
[1609882967074,4.66402608,33902.0,33901.0,2.12599313]
[1609882967874,4.66402608,33902.0,33899.0,2.12767978]
[1609882968976,4.30226361,33902.0,33898.0,0.13632608]
[1609882969876,0.11457,33914.0,33898.0,0.13632608]
[1609882970478,0.4898,33913.0,33898.0,0.13632608]
[1609882970778,0.13632608,33899.0,33898.0,0.13632608]
[1609882972081,1.11457,33914.0,33898.0,0.13632608]
[1609882972483,1.11457,33914.0,33909.0,0.27130682]
[1609882972684,1.11457,33914.0,33898.0,0.13632608]
[1609882972883,1.11457,33914.0,33897.0,1.14961]
[1609882972884,0.13632608,33910.0,33903.0,0.13632608]
[1609882973085,0.13632608,33910.0,33897.0,1.14961]
[1609882974085,0.13632608,33910.0,33904.0,1.0]
[1609882974788,0.11457,33914.0,33909.0,0.13632608]
[1609882974986,5.6569,33921.0,33909.0,0.13632608]
[1609882975888,5.6569,33921.0,33904.0,1.0]
[1609882976088,1.0,33920.0,33903.0,1.0]
[1609882976788,0.13632608,33904.0,33903.0,1.0]
[1609882977993,4.9161,33907.0,33899.0,0.13632608]
[1609882977994,4.9161,33907.0,33902.0,1.0]
[1609882978892,4.9161,33907.0,33906.0,0.13632608]
[1609882979493,0.47344935,33910.0,33906.0,0.13632608]
[1609882980193,0.47344935,33910.0,33908.0,1.0]
[1609882981598,0.47344935,33910.0,33908.0,5.2352]
[1609882981999,0.47344935,33910.0,33908.0,4.2352]
[1609882984002,0.47344935,33910.0,33909.0,1.0]
[1609882984304,0.20216556,33910.0,33909.0,1.0]
[1609882987908,0.20216556,33910.0,33909.0,4.8851]
[1609882990010,0.20216556,33910.0,33909.0,3.8851]
[1609882990210,0.20216556,33910.0,33909.0,4.8851]
[1609882992013,0.20216556,33910.0,33909.0,9.8851]
[1609882992615,0.2764,33938.0,33909.0,9.8851]
[1609882992913,0.2764,33938.0,33933.0,0.13632608]
[1609882993913,4.4168,33935.0,33933.0,0.13632608]
[1609882994113,4.4168,33935.0,33924.0,1.0]
[1609882994916,0.13632608,33925.0,33924.0,1.0]
[1609882995122,4.11622608,33925.0,33924.0,1.0]
[1609882996120,4.11622608,33925.0,33923.0,0.09484]
[1609882996821,4.11622608,33925.0,33909.0,2.11793164]
[1609882997022,0.13632608,33910.0,33909.0,0.13632608]
[1609882997820,4.57652608,33910.0,33898.0,0.1771]
[1609882999023,4.4402,33910.0,33904.0,0.13632608]
[1609882999225,1.0,33914.0,33904.0,0.13632608]
[1609883000025,1.0,33909.0,33904.0,0.13632608]
[1609883000929,0.13632608,33905.0,33904.0,0.13632608]
[1609883001530,3.54272608,33905.0,33904.0,0.13632608]
[1609883012747,3.54272608,33905.0,33897.0,0.14961]
[1609883013044,3.4064,33905.0,33898.0,0.13632608]
[1609883015147,0.13632608,33899.0,33898.0,0.13632608]
[1609883015350,3.9674,33895.0,33894.0,2.14804047]
[1609883015549,3.9674,33895.0,33893.0,2.15059186]
[1609883016349,3.9674,33895.0,33890.0,0.11442]
[1609883016551,0.13632608,33899.0,33888.0,2.15025058]
[1609883016749,0.13632608,33899.0,33888.0,6.73115058]
[1609883016950,0.13632608,33899.0,33888.0,6.85763058]
[1609883017152,1.0,33900.0,33889.0,0.13632608]
[1609883018857,3.4708,33890.0,33889.0,0.13632608]
[1609883019061,3.60712608,33890.0,33889.0,0.13632608]
[1609883019257,3.60712608,33890.0,33888.0,0.12648]
[1609883020659,0.13632608,33890.0,33888.0,0.12648]
[1609883021861,4.5115,33882.0,33881.0,2.15132868]
[1609883022063,4.5115,33882.0,33878.0,2.15188758]
[1609883022864,4.5115,33882.0,33871.0,2.51053551]
[1609883022865,4.5115,33882.0,33871.0,2.15249691]
[1609883023063,0.13632608,33872.0,33871.0,2.15249691]
[1609883023262,5.03582608,33872.0,33871.0,2.15249691]
[1609883024062,5.03582608,33872.0,33868.0,2.33187165]
[1609883024262,11.03582608,33872.0,33868.0,2.33187165]
[1609883024486,11.03582608,33872.0,33868.0,1.41197165]
[1609883024864,11.03582608,33872.0,33850.0,2.1503713]
[1609883025065,10.8995,33872.0,33851.0,0.13632608]
[1609883025264,6.0,33872.0,33861.0,3.3747]
[1609883025467,6.0,33872.0,33861.0,3.49683]
[1609883026069,0.14623,33884.0,33861.0,3.49683]
[1609883026269,3.7254,33875.0,33861.0,0.12213]
[1609883027068,0.13632608,33862.0,33861.0,0.12213]
[1609883028071,1.13632608,33862.0,33861.0,0.12213]
[1609883030071,0.13632608,33862.0,33861.0,0.12213]
[1609883030573,4.78492608,33862.0,33851.0,0.1321]
[1609883030773,4.78492608,33862.0,33837.0,3.8441]
[1609883030971,0.13632608,33862.0,33836.0,2.50193754]
[1609883031172,0.13632608,33837.0,33836.0,2.50193754]
[1609883031573,3.85392608,33837.0,33836.0,2.50193754]
[1609883031772,0.13632608,33837.0,33836.0,2.50193754]
[1609883033976,0.13632608,33837.0,33824.0,0.13632608]
[1609883034176,3.8197,33835.0,33824.0,0.13632608]
[1609883035077,3.8197,33835.0,33831.0,0.13632608]
[1609883035277,1.0,33838.0,33831.0,0.28545608]
[1609883036177,3.9209,33839.0,33831.0,0.14913]
[1609883037180,0.13632608,33832.0,33831.0,0.14913]
[1609883037379,0.75592608,33832.0,33831.0,0.14913]
[1609883038181,1.75592608,33832.0,33831.0,0.14913]
[1609883038582,1.13632608,33832.0,33831.0,0.14913]
[1609883039883,1.65922608,33832.0,33831.0,0.14913]
[1609883040083,0.65922608,33832.0,33831.0,0.14913]
[1609883040482,0.65922608,33832.0,33807.0,0.4758]
[1609883040483,0.13632608,33832.0,33807.0,0.4758]
[1609883040683,0.13632608,33832.0,33813.0,4.1593]
[1609883040882,0.13632608,33832.0,33813.0,4.28755]
[1609883041183,4.7423,33839.0,33816.0,0.13632608]
[1609883043086,0.2702,33843.0,33816.0,0.13632608]
[1609883043287,0.2702,33843.0,33813.0,0.12825]
[1609883043288,0.2702,33843.0,33826.0,0.13632608]
[1609883043486,0.2702,33843.0,33826.0,0.26586608]
[1609883043686,3.6714,33835.0,33826.0,0.12954]
[1609883044089,1.0,33829.0,33826.0,0.12954]
[1609883045289,0.13632608,33827.0,33826.0,0.12954]
[1609883047192,0.13632608,33827.0,33826.0,0.26586608]
[1609883048294,0.13632608,33827.0,33826.0,0.12954]
[1609883048492,0.13632608,33827.0,33813.0,0.12825]
[1609883048493,4.6726,33818.0,33813.0,0.12825]
[1609883048795,4.6726,33818.0,33794.0,4.4556]
[1609883049196,0.13632608,33815.0,33814.0,0.13632608]
[1609883050197,4.50082608,33815.0,33814.0,0.13632608]
[1609883050397,1.0,33816.0,33814.0,0.13632608]
[1609883050597,1.0,33816.0,33814.0,4.06552608]
[1609883050797,1.0,33816.0,33814.0,4.17804608]
[1609883050996,1.0,33816.0,33814.0,0.24884608]
[1609883051198,5.0,33833.0,33815.0,3.4674]
[1609883051597,0.13632608,33859.0,33815.0,3.4674]
[1609883052298,0.44377485,33841.0,33816.0,0.356]
[1609883053301,0.17197236,33841.0,33840.0,0.13632608]
[1609883053501,0.17197236,33841.0,33840.0,3.59301608]
[1609883053701,0.13632608,33859.0,33840.0,3.59301608]
[1609883054704,0.2777,33867.0,33840.0,3.59301608]
[1609883054905,0.2777,33867.0,33841.0,0.1771]
[1609883055205,0.2777,33867.0,33861.0,0.13632608]
[1609883055405,0.2777,33867.0,33845.0,4.4893]
[1609883055606,0.2777,33867.0,33841.0,0.1771]
[1609883055607,1.0,33863.0,33846.0,1.0]
[1609883056711,1.0,33863.0,33851.0,3.7382]
[1609883057010,1.0,33863.0,33851.0,3.8551]
[1609883057209,1.0,33863.0,33862.0,0.13632608]
[1609883057509,0.2777,33867.0,33862.0,0.13632608]
[1609883057912,0.2777,33867.0,33856.0,1.0]
[1609883059312,0.13632608,33859.0,33858.0,0.13632608]
[1609883060214,0.13632608,33859.0,33856.0,1.0]
[1609883061519,0.13632608,33859.0,33855.0,0.13632608]
[1609883064121,0.13632608,33859.0,33851.0,0.1169]
[1609883064321,0.13632608,33859.0,33846.0,1.0]
[1609883065223,1.0,33862.0,33846.0,1.0]
[1609883065624,1.0,33849.0,33841.0,0.1771]
[1609883067227,0.13632608,33842.0,33841.0,0.1771]
[1609883067427,0.13632608,33842.0,33838.0,0.13632608]
[1609883069227,0.13632608,33846.0,33838.0,0.13632608]
[1609883069429,0.13632608,33846.0,33838.0,0.22872608]
[1609883070629,0.13632608,33846.0,33838.0,0.0924]
[1609883071230,0.13632608,33840.0,33838.0,0.0924]
[1609883073232,0.13632608,33840.0,33839.0,0.13632608]
[1609883075233,0.13632608,33840.0,33838.0,0.0924]
[1609883075434,0.13632608,33840.0,33834.0,0.13632608]
[1609883077340,0.13632608,33836.0,33834.0,0.13632608]
[1609883078239,1.0,33844.0,33834.0,0.13632608]
[1609883078440,1.0,33844.0,33834.0,0.23895608]
[1609883079339,1.0,33844.0,33839.0,0.13632608]
[1609883081442,0.13632608,33840.0,33834.0,0.10263]
[1609883081643,1.13632608,33840.0,33834.0,0.10263]
[1609883083446,0.13632608,33835.0,33833.0,3.6893]
[1609883084245,0.13632608,33835.0,33831.0,0.13632608]
[1609883084448,0.13632608,33835.0,33832.0,2.15646978]
[1609883085450,0.13632608,33835.0,33831.0,2.39319384]
[1609883085647,0.13632608,33835.0,33831.0,2.25686776]
[1609883086650,0.13632608,33835.0,33831.0,0.10036]
[1609883087553,1.0,33832.0,33831.0,0.10036]
[1609883090158,1.0,33832.0,33826.0,0.1771]
[1609883091359,1.0,33832.0,33831.0,0.13632608]
[1609883091558,1.0,33834.0,33831.0,0.13632608]
[1609883093460,0.13632608,33835.0,33831.0,0.13632608]
[1609883093662,1.0,33842.0,33831.0,0.13632608]
[1609883095367,1.0,33842.0,33835.0,0.13632608]
[1609883095568,0.14913,33848.0,33829.0,0.09693]
[1609883095767,5.0,33850.0,33829.0,0.09693]
[1609883095967,0.12289,33848.0,33829.0,0.09693]
[1609883096667,0.12289,33848.0,33826.0,0.1771]
[1609883097369,0.13632608,33827.0,33826.0,0.1771]
[1609883097569,1.13632608,33827.0,33826.0,0.1771]
[1609883101470,0.13632608,33827.0,33826.0,0.1771]
[1609883103475,1.13632608,33827.0,33826.0,0.1771]
[1609883109380,1.13632608,33827.0,33826.0,0.31342608]
[1609883111582,0.13632608,33827.0,33826.0,0.31342608]
[1609883111784,4.86142608,33827.0,33826.0,0.31342608]
[1609883111985,0.13632608,33827.0,33826.0,0.31342608]
[1609883112784,4.13882608,33827.0,33826.0,0.31342608]
[1609883113684,5.13882608,33827.0,33826.0,0.31342608]
[1609883116688,1.13632608,33827.0,33826.0,0.31342608]
[1609883117893,1.53061045,33827.0,33826.0,0.31342608]
[1609883118091,1.53061045,33827.0,33826.0,0.1771]
[1609883118490,1.53061045,33827.0,33814.0,0.11252]
[1609883118692,1.53061045,33827.0,33807.0,0.1771]
[1609883118892,0.5718,33826.0,33807.0,0.1771]
[1609883119492,1.13632608,33814.0,33812.0,0.13632608]
[1609883120094,1.13632608,33814.0,33807.0,0.1771]
[1609883121599,1.13632608,33814.0,33806.0,0.02004079]
[1609883121600,3.3426,33807.0,33806.0,0.02004079]
[1609883122797,3.3426,33807.0,33795.0,0.01]
[1609883123000,0.13632608,33808.0,33795.0,0.01]
[1609883123199,0.13632608,33808.0,33795.0,0.12354]
[1609883123599,6.13632608,33796.0,33795.0,0.12354]
[1609883124399,6.0,33796.0,33795.0,0.59854]
[1609883125601,1.0,33804.0,33795.0,0.73486608]
[1609883127603,0.12254,33819.0,33795.0,0.73486608]
[1609883127604,1.0,33807.0,33803.0,0.13632608]
[1609883127803,1.0,33807.0,33803.0,0.24529608]
[1609883131511,0.13632608,33815.0,33803.0,0.24529608]
[1609883132911,0.13632608,33815.0,33803.0,0.10897]
[1609883133315,0.13632608,33815.0,33802.0,3.7514]
[1609883133513,0.13632608,33803.0,33801.0,0.13632608]
[1609883133913,3.9934,33797.0,33795.0,2.27393731]
[1609883134316,0.13632608,33803.0,33795.0,2.27393731]
[1609883134514,4.8967,33796.0,33795.0,2.27393731]
[1609883135515,5.03302608,33796.0,33795.0,2.27393731]
[1609883135715,11.03302608,33796.0,33795.0,2.27393731]
[1609883136018,11.03302608,33796.0,33795.0,0.12354]
[1609883136216,11.03302608,33796.0,33795.0,0.01]